bitfinex-derivatives/quotes_SOLF0:USTF0_20240906
["timestamp","ask_amount","ask_price","bid_price","bid_amount"]
[1725607472509,44.99,127.97,127.82,2.964]
[1725607472711,44.99,127.9,127.82,2.964]
[1725607472910,3.99734948,127.98,127.82,2.964]
[1725607473103,44.99,127.94,127.82,47.954]
[1725607473302,0.2874316,128.01,127.87,0.04571567]
[1725607473501,0.05130844,127.89,127.87,0.04571567]
[1725607473713,0.1353,128.02,127.87,0.04571567]
[1725607473914,0.0838,128.1,127.87,0.04571567]
[1725607474214,44.99,128.08,127.95,44.99]
[1725607474402,44.99,127.97,127.86,3.90700727]
[1725607474602,44.99,127.97,127.87,5.81797669]
[1725607474805,44.99,128.01,127.87,5.81797669]
[1725607475010,45.04272407,127.95,127.81,3.35290464]
[1725607475212,0.05272407,127.95,127.82,4.4236]
[1725607475514,44.99,127.9,127.82,4.4236]
[1725607476110,4.03187542,127.94,127.81,3.35290464]
[1725607476111,3.9114,127.85,127.81,3.35290464]
[1725607476310,44.99,127.85,127.81,3.35290464]
[1725607476515,44.99,127.89,127.81,3.35290464]
[1725607476726,3.9111,127.86,127.81,3.35290464]
[1725607476905,44.99,127.87,127.85,0.04917284]
[1725607477106,3.9119,127.84,127.81,3.35290464]
[1725607477314,0.05677614,127.86,127.81,3.35290464]
[1725607478711,3.9118,127.84,127.81,3.35290464]
[1725607478912,0.05677614,127.86,127.82,0.04785127]
[1725607480021,3.96797614,127.86,127.82,0.04785127]
[1725607480221,0.05677614,127.86,127.82,0.04785127]
[1725607480916,3.96787614,127.86,127.82,0.04785127]
[1725607481220,44.99,127.84,127.82,0.04785127]
[1725607481424,48.9018,127.84,127.82,0.04785127]
[1725607481726,44.99,127.84,127.82,0.04785127]
[1725607481915,3.9123,127.82,127.81,3.35290464]
[1725607482308,44.99,127.84,127.81,3.35290464]
[1725607482516,44.99,127.82,127.8,1.46108804]
[1725607482709,44.99,127.82,127.77,1.90580122]
[1725607482921,44.99,127.78,127.71,5.48125087]
[1725607483118,0.1254,127.81,127.71,5.48125087]
[1725607483119,44.99,127.75,127.71,5.48125087]
[1725607483626,44.99,127.75,127.63,2.9127]
[1725607483627,3.9165,127.69,127.63,2.9127]
[1725607483816,44.99,127.72,127.63,2.9127]
[1725607484122,0.05051453,127.69,127.63,2.9127]
[1725607484326,145.88833451,127.75,127.63,2.9127]
[1725607484515,44.99,127.73,127.63,2.9127]
[1725607484818,44.99,127.7,127.63,2.9127]
[1725607485320,3.9169,127.67,127.63,1.4401]
[1725607485527,3.9169,127.67,127.62,5.29790428]
[1725607485730,44.99,127.68,127.62,5.29790428]
[1725607486024,0.06008648,127.69,127.6,1.65107985]
[1725607486025,44.99,127.63,127.6,1.65107985]
[1725607486218,44.99,127.74,127.5,1.75]
[1725607486219,44.99,127.58,127.5,1.75]
[1725607486518,44.99,127.56,127.5,1.75]
[1725607486724,44.99,127.58,127.5,1.75]
[1725607487020,45.04379378,127.6,127.53,5.52791509]
[1725607487218,44.99,127.66,127.53,5.52791509]
[1725607487219,44.99,127.58,127.53,5.52791509]
[1725607487422,44.99,127.61,127.53,5.52791509]
[1725607487617,44.99,127.66,127.53,50.51791509]
[1725607487812,44.99,127.66,127.54,1.4024]
[1725607488014,44.99,127.69,127.55,44.99]
[1725607488210,44.99,127.66,127.55,1.4051]
[1725607488420,0.0564012,127.63,127.55,1.4051]
[1725607488626,0.0564012,127.63,127.56,3.92588274]
[1725607488826,44.99,127.71,127.59,44.99]
[1725607489128,44.99,127.81,127.61,44.99]
[1725607489129,44.99,127.74,127.61,44.99]
[1725607489321,0.0574475,127.66,127.6,2.96753592]
[1725607489510,0.0574475,127.66,127.6,1.5275]
[1725607489716,44.99,127.71,127.64,0.05175778]
[1725607489920,44.99,127.69,127.64,0.05175778]
[1725607490115,44.99,127.66,127.6,1.5275]
[1725607490322,3.9177,127.65,127.6,1.5275]
[1725607490520,44.99,127.64,127.6,1.5275]
[1725607490721,44.99,127.64,127.55,1.4051]
[1725607491030,48.9084,127.62,127.61,0.05205561]
[1725607491522,44.99,127.62,127.53,5.47585948]
[1725607491720,44.99,127.56,127.53,5.47585948]
[1725607491915,44.99,127.58,127.53,5.47585948]
[1725607492323,44.99,127.6,127.53,5.47585948]
[1725607492521,3.84352156,127.77,127.53,9.40515972]
[1725607492824,3.84352156,127.77,127.56,44.99]
[1725607492825,44.99,127.7,127.56,44.99]
[1725607493217,44.99,127.68,127.54,4.3182]
[1725607493621,44.99,127.68,127.55,44.99]
[1725607494423,0.0584339,127.63,127.6,0.04956762]
[1725607494718,3.84352156,127.77,127.6,45.03956762]
[1725607495026,44.99,127.81,127.61,3.94019173]
[1725607495027,44.99,127.74,127.61,3.94019173]
[1725607495224,44.99,127.71,127.58,44.99]
[1725607495822,0.05956395,127.66,127.63,0.05967827]
[1725607496123,0.05956395,127.66,127.54,4.3182]
[1725607496427,44.99,127.68,127.54,49.3082]
[1725607496628,44.99,127.68,127.54,53.15510029]
[1725607497134,44.99,127.68,127.55,1.44055888]
[1725607497314,44.99,127.68,127.54,53.15510029]
[1725607497514,0.0565965,127.62,127.6,0.05292098]
[1725607497918,44.99,127.65,127.54,4.3182]
[1725607498119,44.99,127.63,127.54,4.3182]
[1725607498324,0.05711082,127.62,127.6,0.05243774]
[1725607498526,44.99,127.61,127.6,0.05243774]
[1725607498825,44.99,127.61,127.54,2.8905]
[1725607499826,44.99,127.65,127.53,5.47585948]
[1725607500032,0.05083654,127.59,127.53,5.47585948]
[1725607500524,44.99,127.63,127.53,5.47585948]
[1725607500733,0.05652449,127.57,127.53,5.47585948]
[1725607501934,44.99,127.66,127.53,5.47585948]
[1725607502327,52.82,127.74,127.54,44.99]
[1725607502328,44.99,127.68,127.54,44.99]
[1725607502634,44.99,127.68,127.58,3.9196]
[1725607502822,44.99,127.68,127.54,48.89722882]
[1725607503133,0.0538292,127.64,127.63,3.9181]
[1725607503325,44.99,127.76,127.63,2.9227]
[1725607503525,44.99,127.76,127.63,6.79539432]
[1725607504028,44.99,127.81,127.67,44.99]
[1725607504220,44.99,127.81,127.63,6.79539432]
[1725607504221,44.99,127.76,127.63,6.79539432]
[1725607504521,44.99,127.78,127.65,44.99]
[1725607504927,0.05440891,127.75,127.73,0.04945924]
[1725607505125,3.9127,127.81,127.75,3.9144]
[1725607505328,44.99,127.78,127.73,0.04945924]
[1725607505522,44.99,127.78,127.63,6.79539432]
[1725607505726,3.9141,127.77,127.65,44.99]
[1725607505925,44.99,127.71,127.63,2.9227]
[1725607506125,3.9157,127.71,127.63,2.9227]
[1725607506326,44.99,127.73,127.63,2.9227]
[1725607506828,0.05105145,127.68,127.66,0.05945901]
[1725607507230,3.9169,127.67,127.66,0.05945901]
[1725607507435,44.99,127.68,127.54,46.4471]
[1725607507636,44.99,127.65,127.54,1.4571]
[1725607508134,44.99,127.6,127.54,1.4571]
[1725607508526,0.05900644,127.58,127.56,0.0528072]
[1725607509836,44.99,127.65,127.58,3.9194]
[1725607510140,44.99,127.67,127.57,1.4274]
[1725607510644,44.99,127.72,127.58,46.5123]
[1725607510835,3.916,127.71,127.63,3.918]
[1725607511141,0.05463522,127.66,127.64,0.05838622]
[1725607511337,44.99,127.72,127.64,0.05838622]
[1725607511542,44.99,127.72,127.6,3.88984406]
[1725607511743,44.99,127.72,127.58,46.5123]
[1725607511930,44.99,127.72,127.61,44.99]
[1725607512131,44.99,127.75,127.61,48.99275225]
[1725607512640,0.05498539,127.69,127.67,0.05073086]
[1725607512830,3.9148,127.74,127.61,48.99275225]
[1725607513035,0.05425153,127.69,127.66,0.05716196]
[1725607513231,23.49,127.88,127.63,44.99]
[1725607513232,146.21300563,127.78,127.63,44.99]
[1725607513435,146.21300563,127.78,127.64,46.5356]
[1725607513828,101.22300563,127.78,127.64,1.5456]
[1725607514047,44.99,127.75,127.64,1.5456]
[1725607514542,0.05496961,127.71,127.69,3.9162]
[1725607514731,0.05496961,127.71,127.69,0.05900854]
[1725607515832,146.21300563,127.78,127.68,3.88244631]
[1725607516147,44.99,127.81,127.67,44.99]
[1725607516832,0.05489283,127.75,127.73,0.05656657]
[1725607519043,44.99,127.84,127.73,0.05656657]
[1725607519245,0.1222,127.85,127.72,44.99]
[1725607519442,0.1222,127.85,127.73,1.4793]
[1725607520148,0.05126139,127.8,127.78,0.0569561]
[1725607520336,44.99,127.92,127.77,44.99]
[1725607520535,44.99,127.89,127.76,1.4833]
[1725607520849,44.99,127.92,127.77,44.99]
[1725607521048,3.9098,127.91,127.77,48.8698838]
[1725607521347,44.99,127.94,127.8,44.99]
[1725607521549,0.05743418,127.85,127.83,0.05105816]
[1725607521850,44.99,127.92,127.8,44.99]
[1725607522144,0.05097835,127.87,127.83,0.05292373]
[1725607522348,0.05097835,127.87,127.8,44.99]
[1725607522349,0.05097835,127.87,127.84,0.05973381]
[1725607523054,44.99,127.97,127.82,44.99]
[1725607523244,44.99,127.97,127.77,3.8798838]
[1725607523449,3.9089,127.94,127.81,44.99]
[1725607523647,44.99,127.94,127.82,1.43757829]
[1725607523850,44.99,127.94,127.81,48.9774953]
[1725607524146,0.05433073,127.89,127.86,0.05302836]
[1725607524346,45.04433073,127.89,127.86,0.05593669]
[1725607524649,44.99,127.87,127.77,1.43799133]
[1725607524854,44.99,127.83,127.69,3.0733]
[1725607525049,3.9133,127.79,127.69,3.0733]
[1725607525262,44.99,127.83,127.7,46.42870472]
[1725607525548,44.99,127.83,127.7,2.87950472]
[1725607525747,0.05595537,127.78,127.75,0.05842868]
[1725607526058,0.05595537,127.78,127.75,0.05985758]
[1725607527854,0.05595537,127.78,127.77,3.9138]
[1725607528246,0.05595537,127.78,127.75,0.05985758]
[1725607528847,0.05595537,127.78,127.77,3.9138]
[1725607529050,0.05595537,127.78,127.75,0.05985758]
[1725607529859,0.05595537,127.78,127.75,3.96435652]
[1725607530050,0.05595537,127.78,127.77,3.9138]
[1725607530759,44.99,127.83,127.75,3.95734285]
[1725607531060,44.99,127.83,127.72,1.43863926]
[1725607531652,0.05092579,127.79,127.76,0.05618258]
[1725607533357,0.05092579,127.79,127.72,1.43863926]
[1725607533759,3.9141,127.77,127.72,5.35373926]
[1725607533953,3.9141,127.77,127.72,1.43863926]
[1725607534261,0.05285387,127.76,127.73,0.05427983]
[1725607534869,0.05285387,127.76,127.72,1.43863926]
[1725607534870,3.915,127.73,127.72,0.88203926]
[1725607535067,44.99,127.73,127.59,1.4624]
[1725607535361,44.99,127.68,127.59,1.4624]
[1725607535563,44.99,127.65,127.5,46.74]
[1725607535765,44.99,127.65,127.54,1.44033455]
[1725607536060,72.34178003,127.74,127.58,0.05272403]
[1725607536061,0.05504018,127.61,127.58,0.05272403]
[1725607536267,0.05461313,127.61,127.58,0.05285671]
[1725607536754,3.97341313,127.61,127.58,0.05285671]
[1725607536955,0.05461313,127.61,127.58,0.05285671]
[1725607537658,0.05461313,127.61,127.6,3.919]
[1725607537959,44.99,127.74,127.6,4.0051045]
[1725607538159,44.99,127.74,127.61,1.4705]
[1725607538360,44.99,127.76,127.63,44.99]
[1725607538562,101.29605844,127.78,127.63,44.99]
[1725607538766,146.28605844,127.78,127.63,44.99]
[1725607539063,146.28605844,127.78,127.66,44.99]
[1725607539259,0.05871621,127.72,127.69,0.05689479]
[1725607539459,146.28605844,127.78,127.66,44.99]
[1725607539766,0.06003275,127.72,127.69,0.04951739]
[1725607539961,0.05526944,127.72,127.69,0.05338228]
[1725607541167,101.29605844,127.78,127.61,46.4605]
[1725607541168,44.99,127.7,127.61,1.4705]
[1725607541368,44.99,127.67,127.61,1.4705]
[1725607541565,44.99,127.65,127.55,1.4841]
[1725607541956,3.919,127.6,127.55,5.4046]
[1725607542160,44.99,127.65,127.55,1.4841]
[1725607542362,0.05779868,127.61,127.59,0.05106684]
[1725607543363,48.909,127.6,127.59,0.05106684]
[1725607544265,3.919,127.6,127.59,0.05106684]
[1725607544458,0.05779868,127.61,127.59,0.05106684]
[1725607544664,44.99,127.68,127.56,44.99]
[1725607545365,3.9178,127.64,127.59,3.9193]
[1725607545558,44.99,127.68,127.56,44.99]
[1725607545767,0.05178622,127.63,127.61,0.05635867]
[1725607545964,0.05159713,127.63,127.62,3.9182]
[1725607546270,0.05159713,127.63,127.61,0.05447013]
[1725607546670,0.05159713,127.63,127.61,3.97317013]
[1725607547169,0.05159713,127.63,127.62,3.9184]
[1725607547672,3.9162,127.7,127.65,3.9174]
[1725607547874,44.99,127.73,127.61,44.99]
[1725607548376,3.9166,127.69,127.59,2.9663]
[1725607548670,44.99,127.73,127.59,2.9663]
[1725607548974,0.05947954,127.67,127.65,0.05090542]
[1725607549168,0.04993362,127.67,127.65,0.04962382]
[1725607550467,0.04993362,127.67,127.66,3.9172]
[1725607552973,44.99,127.76,127.64,3.98426582]
[1725607553871,0.05464214,127.71,127.69,0.05391344]
[1725607554076,44.99,127.71,127.58,44.99]
[1725607554376,3.9167,127.68,127.57,3.87476993]
[1725607554577,44.99,127.71,127.58,44.99]
[1725607554772,3.9163,127.69,127.64,3.9177]
[1725607554986,3.9163,127.69,127.58,44.99]
[1725607555286,0.05179771,127.65,127.64,3.9178]
[1725607555474,0.05179771,127.65,127.63,0.05817648]
[1725607555475,0.05953803,127.66,127.63,0.05817648]
[1725607556070,0.05953803,127.66,127.63,3.97627648]
[1725607556581,0.05953803,127.66,127.63,0.05817648]
[1725607557578,3.9177,127.65,127.63,0.05817648]
[1725607557779,0.05953803,127.66,127.63,0.05817648]
[1725607558775,0.05953803,127.66,127.63,3.97617648]
[1725607558981,0.05953803,127.66,127.63,0.05817648]
[1725607559384,0.05953803,127.66,127.65,3.9175]
[1725607560071,44.99,127.76,127.68,3.9166]
[1725607560381,3.9143,127.76,127.66,44.99]
[1725607560679,146.28605844,127.78,127.66,44.99]
[1725607560680,146.28605844,127.78,127.67,1.5491]
[1725607560880,3.9158,127.71,127.67,2.9666]
[1725607561082,0.05324031,127.7,127.68,0.05077149]
[1725607561275,44.99,127.71,127.58,47.9566]
[1725607561674,0.05499676,127.66,127.63,0.05240023]
[1725607561881,44.99,127.73,127.58,50.4166188]
[1725607562087,0.05975428,127.66,127.63,0.058852]
[1725607562283,0.05975428,127.66,127.58,5.4266188]
[1725607562284,0.05975428,127.66,127.53,50.46585948]
[1725607562484,44.99,127.65,127.53,5.47585948]
[1725607562987,27.38642222,127.73,127.53,5.47585948]
[1725607562988,23.49,127.8,127.57,44.99]
[1725607563186,44.99,127.76,127.58,1.5284]
[1725607563383,44.99,127.74,127.59,47.8966]
[1725607563577,44.99,127.76,127.62,44.99]
[1725607563782,0.05921959,127.68,127.66,0.05576943]
[1725607563985,44.99,127.79,127.66,0.05576943]
[1725607564291,3.9142,127.76,127.64,44.99]
[1725607564476,44.99,127.84,127.69,44.99]
[1725607564686,3.9126,127.81,127.74,3.9146]
[1725607564987,44.99,127.84,127.72,44.99]
[1725607565189,3.93523745,127.88,127.72,44.99]
[1725607565190,44.99,127.86,127.72,44.99]
[1725607565380,0.05336469,127.77,127.75,0.05016232]
[1725607565579,44.99,127.81,127.7,2.944]
[1725607565779,3.9146,127.75,127.68,3.9163]
[1725607565985,44.99,127.76,127.65,5.23988077]
[1725607566182,44.99,127.76,127.74,0.05988127]
[1725607566378,3.9144,127.75,127.65,5.23988077]
[1725607566694,0.05064321,127.72,127.65,5.23988077]
[1725607566988,0.05064321,127.72,127.66,3.87717537]
[1725607567184,0.05064321,127.72,127.65,46.4056]
[1725607567588,0.05064321,127.72,127.67,0.05055605]
[1725607567788,44.99,127.81,127.67,45.04055605]
[1725607567995,3.9134,127.79,127.68,1.5182]
[1725607568293,45.1129,127.86,127.72,44.99]
[1725607568589,44.99,127.89,127.75,44.99]
[1725607568792,44.99,127.86,127.73,1.4671]
[1725607569088,0.05856196,127.81,127.78,0.05109937]
[1725607569487,0.05856196,127.81,127.74,44.99]
[1725607569891,0.05856196,127.81,127.79,44.99]
[1725607570097,44.99,127.91,127.78,0.05775325]
[1725607570098,0.28770739,127.9,127.78,0.05775325]
[1725607570281,0.28770739,127.9,127.77,44.99]
[1725607570282,44.99,127.89,127.77,44.99]
[1725607570481,44.99,127.91,127.78,1.5042]
[1725607570787,3.9112,127.86,127.81,3.9125]
[1725607570991,44.99,127.92,127.79,3.93581636]
[1725607571187,0.28770097,127.91,127.79,3.93581636]
[1725607571401,0.05828614,127.87,127.84,0.05197804]
[1725607572589,44.99,127.97,127.84,44.99]
[1725607573191,3.9092,127.93,127.87,3.9107]
[1725607573382,44.99,127.97,127.87,3.9107]
[1725607573582,3.92524673,128.0,127.83,1.457]
[1725607573790,3.9099,127.9,127.89,0.05692738]
[1725607573991,0.05516209,127.91,127.83,1.457]
[1725607574291,0.05516209,127.91,127.77,44.99]
[1725607574292,3.99532373,127.95,127.8,44.99]
[1725607574495,44.99,127.92,127.8,44.99]
[1725607574699,44.99,127.92,127.77,44.99]
[1725607575193,0.05716338,127.86,127.84,0.0582866]
[1725607575586,44.99,127.92,127.8,44.99]
[1725607575787,44.99,127.92,127.84,0.05569646]
[1725607575788,0.05684983,127.86,127.84,0.05569646]
[1725607576185,44.99,127.92,127.8,44.99]
[1725607576400,0.05556691,127.86,127.84,0.05225007]
[1725607576700,44.99,127.95,127.85,3.9113]
[1725607576894,0.05480688,127.86,127.84,0.04958914]
[1725607577091,44.99,127.97,127.85,44.99]
[1725607577298,3.9084,127.95,127.87,44.99]
[1725607577591,0.1733,128.01,127.87,44.99]
[1725607577797,0.1733,128.01,127.92,3.9091]
[1725607577985,44.99,128.02,127.88,2.9324]
[1725607578186,0.05402539,127.98,127.95,0.05735151]
[1725607579599,0.05402539,127.98,127.8,44.99]
[1725607579600,44.99,127.97,127.8,44.99]
[1725607579895,3.9093,127.92,127.83,44.99]
[1725607580099,44.99,127.96,127.81,2.9961]
[1725607580399,44.99,127.96,127.86,3.911]
[1725607580594,44.99,127.96,127.83,44.99]
[1725607580897,3.9095,127.91,127.9,0.05470342]
[1725607581297,3.9095,127.91,127.86,3.9108]
[1725607581491,3.9093,127.92,127.83,44.99]
[1725607581695,0.05067378,127.92,127.89,0.05317227]
[1725607581893,44.99,127.99,127.9,3.9097]
[1725607582105,0.05954493,127.92,127.9,3.9097]
[1725607582403,44.99,127.99,127.9,3.9097]
[1725607582696,44.99,127.99,127.9,0.05830597]
[1725607582697,0.05812196,127.92,127.9,0.05830597]
[1725607582890,44.99,127.99,127.86,3.97530424]
[1725607583092,0.05319165,127.92,127.9,0.05065418]
[1725607583495,44.99,128.01,127.9,44.99]
[1725607583701,3.9077,127.98,127.94,3.9086]
[1725607583888,114.60798059,128.03,127.91,1.5249]
[1725607584600,0.05319325,127.98,127.96,0.05251767]
[1725607584796,114.60798059,128.03,127.96,0.05251767]
[1725607585189,3.9074,127.98,127.96,0.05251767]
[1725607585392,3.96317907,127.98,127.96,0.05251767]
[1725607585710,0.05577907,127.98,127.97,3.9077]
[1725607585996,45.2163,128.09,127.96,0.05251767]
[1725607586195,3.9051,128.06,127.98,44.99]
[1725607586395,48.84634841,128.13,128.0,44.99]
[1725607586599,0.28725352,128.12,127.99,1.5294]
[1725607586796,3.9049,128.07,128.02,3.9059]
[1725607587002,44.99,128.11,127.99,1.5294]
[1725607587193,0.02047121,128.06,128.03,0.04969601]
[1725607587394,0.02047121,128.06,128.03,0.05978517]
[1725607587997,0.02047121,128.06,128.03,3.96568517]
[1725607588203,0.02047121,128.06,128.03,0.05978517]
[1725607589101,44.99,128.04,127.96,1.5363]
[1725607589497,44.99,128.04,127.91,44.99]
[1725607589800,44.99,128.02,127.9,1.4582]
[1725607590299,45.04751009,127.97,127.95,0.05099501]
[1725607590498,45.04751009,127.97,127.85,1.5285]
[1725607590499,44.99,127.97,127.85,1.5285]
[1725607590812,44.99,127.99,127.86,44.99]
[1725607591102,44.99,127.99,127.9,3.9097]
[1725607591298,44.99,127.99,127.86,44.99]
[1725607591705,11.78007825,128.03,127.91,0.0499817]
[1725607591706,0.05689396,127.94,127.91,0.0499817]
[1725607592198,3.9092,127.92,127.91,0.0499817]
[1725607592411,0.05689396,127.94,127.91,0.0499817]
[1725607592702,3.9089,127.93,127.91,0.0499817]
[1725607592900,0.05689396,127.94,127.91,0.0499817]
[1725607593299,0.05689396,127.94,127.93,3.9089]
[1725607593502,44.99,128.04,127.91,45.0399817]
[1725607593707,44.99,128.04,127.91,44.99]
[1725607594104,44.99,128.02,127.88,44.99]
[1725607594606,0.05471677,127.96,127.94,0.05704381]
[1725607594807,3.9068,128.01,127.97,3.9076]
[1725607595008,44.99,128.07,127.96,44.99]
[1725607595204,0.2259,128.08,127.96,44.99]
[1725607595406,3.9058,128.04,127.96,44.99]
[1725607595812,3.9058,128.04,127.99,0.06008178]
[1725607596113,3.9053,128.05,128.01,3.9063]
[1725607596308,3.9053,128.05,128.02,0.05024152]
[1725607596510,3.9051,128.06,128.02,3.95644152]
[1725607596704,115.34183687,128.11,128.03,0.0514846]
[1725607596905,115.34183687,128.11,128.06,0.05558057]
[1725607597112,3.9049,128.07,128.03,3.9056]
[1725607597307,3.9049,128.07,128.04,0.05412921]
[1725607597512,44.99,128.1,128.04,0.05412921]
[1725607597708,3.9053,128.05,128.04,0.05412921]
[1725607600417,44.99,128.01,127.9,3.89926359]
[1725607600611,44.99,128.04,127.9,48.88926359]
[1725607600809,44.99,128.04,127.96,3.908]
[1725607601017,44.99,128.04,127.9,48.88926359]
[1725607601311,48.95257728,128.04,127.9,3.89926359]
[1725607601617,44.99,127.99,127.98,0.05174403]
[1725607602115,44.99,127.99,127.89,1.5604]
[1725607602612,3.96257728,128.04,127.89,1.5604]
[1725607602809,44.99,128.01,127.89,5.52506515]
[1725607603010,44.99,127.99,127.89,1.5604]
[1725607603210,3.9834365,128.01,127.93,0.0578571]
[1725607603211,0.05351079,127.95,127.93,0.0578571]
[1725607603416,0.05384785,127.95,127.93,0.05731739]
[1725607603608,3.9086,127.94,127.93,0.05731739]
[1725607604619,44.99,127.94,127.84,1.4117]
[1725607604912,44.99,127.9,127.84,3.9116]
[1725607605113,44.99,127.9,127.78,44.99]
[1725607605114,3.9101,127.9,127.79,1.4383]
[1725607605316,44.99,127.93,127.8,44.99]
[1725607605622,0.05319277,127.88,127.86,0.05248035]
[1725607605822,44.99,127.95,127.85,3.87779957]
[1725607606004,44.99,127.95,127.83,44.99]
[1725607606209,0.05205715,127.91,127.89,0.05265917]
[1725607606411,3.92200774,127.98,127.89,0.05265917]
[1725607606412,44.99,127.98,127.89,0.05265917]
[1725607606617,44.99,127.98,127.9,3.9097]
[1725607606815,44.99,128.01,127.87,44.99]
[1725607607123,44.99,128.01,127.91,3.9093]
[1725607607419,3.9083,127.96,127.95,0.05922586]
[1725607607610,0.05232599,127.97,127.95,0.05922586]
[1725607608224,3.96032599,127.97,127.95,0.05922586]
[1725607608412,0.05232599,127.97,127.95,0.05922586]
[1725607609017,3.908,127.96,127.95,0.05922586]
[1725607609225,44.99,127.98,127.9,2.9985]
[1725607609912,3.89344848,128.04,127.92,44.99]
[1725607610110,44.99,128.03,127.9,2.9985]
[1725607610311,0.05588665,127.98,127.95,0.05940019]
[1725607610516,0.05588665,127.98,127.95,0.05220507]
[1725607611114,3.9077,127.97,127.95,0.05220507]
[1725607611318,0.05588665,127.98,127.95,0.05220507]
[1725607612523,44.99,127.98,127.85,44.99]
[1725607613020,44.99,127.98,127.89,3.91]
[1725607613225,44.99,127.98,127.85,44.99]
[1725607613423,44.99,127.98,127.9,3.95983696]
[1725607613424,0.05097422,127.93,127.9,3.95983696]
[1725607613617,0.05097422,127.93,127.9,3.96850366]
[1725607613814,0.05097422,127.93,127.91,3.9095]
[1725607614015,0.05097422,127.93,127.9,0.05900366]
[1725607614334,44.99,128.03,127.9,0.05900366]
[1725607614622,44.99,128.03,127.9,3.0408]
[1725607615220,44.99,128.05,127.92,44.99]
[1725607615416,0.05756381,128.0,127.97,0.05347597]
[1725607615619,3.96456381,128.0,127.97,0.04954317]
[1725607616125,3.9071,127.99,127.97,0.04954317]
[1725607617723,3.9074,127.98,127.97,0.04954317]
[1725607618027,44.99,128.0,127.9,3.0408]
[1725607618324,44.99,128.03,127.9,3.0408]
[1725607618727,44.99,128.03,127.9,48.0308]
[1725607619028,0.05552437,127.98,127.95,0.05091231]
[1725607619328,0.05995474,127.98,127.95,0.05244283]
[1725607619930,45.04995474,127.98,127.95,0.05244283]
[1725607620522,44.99,127.96,127.86,1.5901]
[1725607621028,3.9104,127.89,127.86,1.5901]
[1725607621627,44.99,127.93,127.84,3.9116]
[1725607621815,0.05538515,127.89,127.86,0.05857389]
[1725607622018,0.05450409,127.89,127.86,0.05613288]
[1725607622817,3.9108,127.87,127.86,0.05613288]
[1725607623229,0.05450409,127.89,127.86,0.05613288]
[1725607623819,45.0895,127.99,127.85,44.99]
[1725607624123,44.99,127.99,127.85,44.99]
[1725607624728,44.99,128.01,127.87,44.99]
[1725607624929,0.05252413,127.93,127.91,0.05600394]
[1725607625126,3.84861376,128.04,127.9,44.99]
[1725607625127,44.99,128.03,127.9,44.99]
[1725607625329,44.99,128.03,127.91,1.4817]
[1725607625525,44.99,128.03,127.92,44.99]
[1725607625833,0.3582,128.08,127.92,44.99]
[1725607625834,3.9066,128.01,127.92,44.99]
[1725607626026,44.99,128.06,127.92,44.99]
[1725607626222,0.05262991,127.98,127.97,3.9076]
[1725607626424,0.05514687,127.99,127.96,0.05863421]
[1725607626620,0.05514687,127.99,127.96,0.05847255]
[1725607626621,0.05358635,127.99,127.96,0.05847255]
[1725607627131,3.9077,127.97,127.96,0.05847255]
[1725607627429,44.99,127.99,127.85,44.99]
[1725607627821,27.49353706,128.03,127.88,3.9103]
[1725607627822,44.99,127.97,127.88,3.9103]
[1725607628330,3.9092,127.93,127.91,0.05125224]
[1725607628625,0.05419536,127.94,127.91,0.05125224]
[1725607629627,3.96279536,127.94,127.91,0.05125224]
[1725607630026,0.05419536,127.94,127.91,0.05125224]
[1725607630220,45.0811,128.02,127.87,46.541]
[1725607630221,44.99,128.02,127.94,3.9084]
[1725607630425,44.99,128.05,127.93,3.994229]